bitfinex/quotes_ETHUSD_20240729
["timestamp","ask_amount","ask_price","bid_price","bid_amount"]
[1722267083142,0.07561093,3306.7,3306.2,3.327066]
[1722267083984,0.07561093,3306.8,3306.2,3.327066]
[1722267084293,1.66188474,3306.8,3306.2,0.302466]
[1722267084437,1.66188474,3306.7,3306.2,0.302466]
[1722267084780,0.07561093,3306.7,3306.0,3.0248]
[1722267084965,1.66179761,3306.7,3306.0,3.0248]
[1722267085293,1.66179761,3306.7,3306.1,3.0247]
[1722267085438,1.66178169,3306.6,3305.8,0.905009]
[1722267085642,1.66178169,3306.6,3305.1,5.50351]
[1722267085643,1.58617075,3306.5,3305.3,0.550339]
[1722267085937,1.58617075,3306.2,3305.2,3.0]
[1722267086140,1.661795,3306.1,3305.5,3.02525]
[1722267086349,1.58617075,3306.0,3305.6,3.0]
[1722267086564,0.07562428,3305.9,3305.4,3.0]
[1722267086770,0.07562428,3306.0,3305.4,6.627807]
[1722267087110,0.07562428,3306.0,3305.5,3.02518]
[1722267087261,0.07562428,3306.0,3305.6,6.02511]
[1722267087465,0.07562428,3306.0,3305.6,3.0]
[1722267087800,0.07562428,3306.1,3305.5,3.0252]
[1722267088003,0.07562428,3306.1,3305.6,3.0]
[1722267088175,1.58646489,3306.2,3305.6,3.02509]
[1722267088379,1.58646489,3306.1,3305.5,0.6627737]
[1722267088701,1.58646489,3306.3,3305.9,3.02483]
[1722267088907,1.58646489,3306.4,3305.6,0.36627737]
[1722267089092,1.58646489,3306.5,3306.3,3.02452]
[1722267089255,1.9793753,3306.8,3306.3,3.02452]
[1722267089256,1.58646489,3306.4,3306.3,3.02452]
[1722267089462,1.58646489,3306.6,3306.3,3.02452]
[1722267089658,1.58646489,3306.7,3306.4,3.02438]
[1722267089978,2.4224,3306.9,3306.7,3.02415]
[1722267089979,1.58622557,3306.9,3306.7,3.02415]
[1722267090161,1.58622557,3307.0,3306.4,0.302438]
[1722267090506,1.58622557,3306.9,3306.4,3.02443]
[1722267090714,1.58622557,3306.9,3306.5,3.02433]
[1722267090857,1.58622557,3306.8,3306.6,3.02425]
[1722267091061,1.58614952,3307.0,3306.4,3.02439]
[1722267091261,1.58614952,3307.0,3306.5,0.302439]
[1722267091566,1.58614952,3306.9,3306.5,0.302439]
[1722267091762,1.58614952,3306.9,3306.4,3.02436]
[1722267092200,1.58614952,3306.8,3306.5,3.02434]
[1722267092725,1.58614952,3306.9,3306.5,3.02434]
[1722267092912,0.07560182,3307.1,3306.2,3.02459]
[1722267092913,1.58614952,3306.7,3306.2,3.02459]
[1722267093059,0.07560988,3306.8,3306.2,6.654038]
[1722267093060,1.58614952,3306.6,3306.2,6.654038]
[1722267093266,1.58614952,3306.6,3306.2,6.654018]
[1722267093586,1.58614952,3306.5,3306.2,0.604938]
[1722267093764,1.58614952,3306.5,3306.2,3.629538]
[1722267093980,0.07560744,3306.7,3306.2,3.629538]
[1722267094174,1.58615747,3306.5,3306.2,3.629538]
[1722267094377,1.58615747,3306.6,3306.4,3.02443]
[1722267094604,0.07560735,3307.1,3306.4,3.02443]
[1722267094605,1.58615747,3306.7,3306.4,6.0488]
[1722267094809,1.58615747,3306.8,3306.4,3.02437]
[1722267094966,1.58615747,3306.7,3306.4,3.02437]
[1722267095167,1.58615747,3306.7,3306.4,0.604894]
[1722267095379,1.58615747,3306.8,3306.4,0.604894]
[1722267095711,1.58615747,3306.7,3306.2,3.02457]
[1722267095910,1.58615747,3306.7,3306.1,3.0]
[1722267096084,0.07560662,3306.9,3305.9,3.02489]
[1722267096085,1.66176415,3306.6,3305.9,3.02489]
[1722267096279,1.58615747,3306.2,3305.6,3.39143737]
[1722267096483,1.58615747,3306.0,3305.4,3.02531]
[1722267096809,1.58615747,3306.0,3305.6,3.02515]
[1722267096961,1.58615747,3306.0,3305.4,3.560041]
[1722267097163,1.66220464,3305.9,3305.0,3.02565]
[1722267097395,1.58658008,3305.6,3305.0,6.05129]
[1722267097593,1.58658008,3305.7,3305.0,3.02564]
[1722267097808,1.66221381,3305.6,3304.8,3.02586]
[1722267098130,1.58658008,3305.4,3304.8,3.567356]
[1722267098426,0.07563964,3305.3,3304.8,3.02586]
[1722267098630,1.58658008,3305.4,3305.0,3.02569]
[1722267098913,0.07563948,3305.6,3305.1,3.02556]
[1722267098914,1.58658008,3305.5,3305.1,3.02556]
[1722267099115,0.07563946,3305.4,3305.1,3.02556]
[1722267099316,1.58658008,3305.7,3305.3,3.02544]
[1722267099540,1.66221397,3305.8,3305.1,6.05111]
[1722267099691,0.07563398,3305.6,3305.1,3.02555]
[1722267099900,1.66221406,3305.6,3305.1,3.0256]
[1722267100112,0.07563399,3305.8,3305.2,3.02549]
[1722267100328,1.58604209,3305.7,3305.2,3.02549]
[1722267100636,0.07563401,3305.7,3305.3,3.02538]
[1722267100778,0.07563401,3305.7,3305.2,3.02551]
[1722267100983,0.07563401,3305.7,3305.3,3.02543]
[1722267101179,1.25127121,3306.2,3305.3,3.02538]
[1722267101180,1.58604209,3305.9,3305.3,3.02538]
[1722267101530,1.58604209,3305.7,3304.6,5.3891]
[1722267101682,1.58604209,3305.5,3304.7,3.02595]
[1722267102019,0.07563618,3305.4,3305.0,3.02571]
[1722267102224,0.07563618,3305.4,3304.8,3.02582]
[1722267102426,0.0756362,3305.5,3304.8,3.0]
[1722267102628,0.0756362,3305.5,3305.0,3.02571]
[1722267102831,0.0756362,3305.5,3305.1,3.0256]
[1722267103032,0.0756362,3305.5,3304.9,3.02575]
[1722267103341,0.07563618,3305.6,3304.8,3.02585]
[1722267103644,1.58509661,3305.4,3304.9,3.0]
[1722267103822,0.07564465,3305.3,3304.2,3.02643]
[1722267103986,0.07564465,3305.3,3304.3,3.02634]
[1722267103987,1.58509661,3305.1,3304.3,3.02634]
[1722267104187,0.0756525,3305.0,3304.3,3.02634]
[1722267104716,0.0756525,3305.0,3304.3,3.0263]
[1722267105236,0.0756525,3305.0,3304.3,3.02633]
[1722267105435,0.0756525,3305.0,3304.4,3.02626]
[1722267105633,0.07565247,3305.2,3304.4,3.02626]
[1722267105787,0.24172738,3305.2,3304.4,3.02626]
[1722267105990,1.82682399,3305.2,3304.4,3.02626]
[1722267106222,0.07565247,3305.2,3304.3,3.02632]
[1722267106417,0.07565247,3305.2,3304.5,3.02612]
[1722267106637,0.07565247,3305.2,3304.3,3.02628]
[1722267106922,1.58377046,3305.1,3304.1,3.02646]
[1722267107125,1.58377046,3305.1,3304.2,3.0]
[1722267107126,0.07565254,3305.0,3304.2,3.0]
[1722267107684,1.659423,3305.0,3304.0,3.13002]
[1722267107940,1.58377046,3304.9,3304.1,3.0]
[1722267108237,0.07566052,3304.8,3304.1,3.0]
[1722267108392,0.07566053,3305.0,3304.0,3.1034]
[1722267108586,0.07566053,3305.0,3304.5,3.02612]
[1722267108795,1.58377046,3305.4,3304.7,3.02597]
[1722267109095,0.07565111,3305.3,3304.5,3.0261]
[1722267109308,0.07565111,3305.3,3304.3,3.02628]
[1722267109309,0.07565249,3305.2,3304.3,3.02628]
[1722267109835,0.07565249,3305.2,3304.5,3.02611]
[1722267110035,0.07565249,3305.2,3304.4,3.02619]
[1722267110036,0.07565249,3305.2,3304.4,3.02625]
[1722267110550,0.07565249,3305.2,3304.2,3.0264]
[1722267110726,1.65794846,3305.2,3304.2,3.0264]
[1722267110904,0.20684579,3305.1,3304.2,3.02638]
[1722267111255,0.07565252,3305.0,3304.2,3.02638]
[1722267111820,0.07565252,3305.0,3304.3,3.02635]
[1722267112014,0.07565252,3305.0,3304.4,3.02624]
[1722267112221,0.07565252,3305.0,3304.2,3.02638]
[1722267112639,0.07565252,3305.0,3304.2,3.02642]
[1722267112845,0.07565483,3305.2,3304.3,3.02634]
[1722267113068,0.07565483,3305.2,3304.5,3.02611]
[1722267113069,0.2067952,3305.1,3304.5,3.02611]
[1722267113231,0.07565483,3305.2,3304.7,3.02599]
[1722267113447,1.58178764,3305.6,3305.0,3.02566]
[1722267113796,0.07563997,3305.5,3305.2,3.02544]
[1722267113928,0.07563763,3305.8,3305.2,3.02544]
[1722267114424,1.58178764,3306.1,3305.4,3.02532]
[1722267114626,1.58178764,3306.1,3304.5,5.35022]
[1722267114627,2.4797,3306.3,3304.8,2.694]
[1722267114826,0.07562778,3306.2,3305.5,3.0252]
[1722267115031,0.07562778,3306.2,3305.3,3.0254]
[1722267115261,0.07562778,3306.2,3305.4,3.02534]
[1722267115438,0.07562778,3306.2,3305.2,3.0255]
[1722267115439,0.48933932,3306.2,3305.2,3.0255]
[1722267115641,0.48933932,3306.2,3305.3,3.0]
[1722267115953,1.58142116,3306.0,3305.1,3.02557]
[1722267116153,0.0756365,3305.9,3305.1,3.02557]
[1722267116542,0.0756365,3305.9,3304.9,6.05144]
[1722267116726,0.24134227,3305.9,3305.2,3.02548]
[1722267117053,1.82276343,3305.9,3305.0,3.02565]
[1722267117375,1.82276343,3305.9,3304.7,3.02597]
[1722267117376,0.0756365,3305.8,3304.7,3.02597]
[1722267117528,4.60636116,3305.9,3304.0,0.1034]
[1722267117529,3.02531,3305.5,3304.0,0.1034]
[1722267117728,4.60696116,3305.2,3304.1,3.02652]
[1722267117951,0.5363542,3305.1,3304.1,3.02652]
[1722267118289,0.5363542,3305.1,3304.0,0.1034]
[1722267118503,5.37577,3305.0,3304.0,0.1034]
[1722267118805,0.07566176,3304.9,3304.0,0.1034]
[1722267119110,1.65783179,3304.9,3304.0,0.1034]
[1722267119449,0.07566176,3304.9,3304.0,0.1034]
[1722267120451,0.07566176,3304.9,3304.0,3.13003]
[1722267120652,0.77900794,3304.9,3304.0,0.1034]
[1722267120852,0.77900794,3304.9,3304.0,3.12997]
[1722267121087,0.07566176,3304.9,3304.2,3.02644]
[1722267121390,0.07566176,3304.9,3304.4,3.02619]
[1722267121783,0.07565539,3305.3,3304.2,3.02637]
[1722267121947,5.40517,3305.5,3304.5,3.02612]
[1722267121948,0.07565539,3305.2,3304.5,3.02612]
[1722267122153,3.96096041,3305.5,3304.5,3.328732]
[1722267122381,2.3799,3305.5,3305.0,3.02566]
[1722267122560,2.3799,3305.5,3304.8,3.0259]
[1722267122561,0.07564828,3305.4,3304.8,3.0259]
[1722267123180,4.00696041,3306.0,3305.0,3.02569]
[1722267123381,1.98175645,3305.9,3305.0,3.02569]
[1722267123581,0.40069604,3305.9,3305.0,3.02569]
[1722267123776,0.07564192,3305.8,3304.8,3.02582]
[1722267123960,0.07564192,3305.8,3304.8,3.02581]
[1722267124204,0.07564192,3305.8,3305.0,3.0257]
[1722267124522,0.07564192,3305.8,3305.0,3.630851]
[1722267124801,1.58106041,3306.2,3305.5,3.02519]
[1722267125022,0.07562792,3306.1,3305.5,3.02519]
[1722267125171,3.15780297,3306.5,3305.3,3.02542]
[1722267125366,1.58046191,3306.4,3305.5,3.0252]
[1722267125566,1.57734106,3306.5,3305.4,0.302542]
[1722267125567,0.07562791,3306.3,3305.4,0.302542]
[1722267125862,0.07562791,3306.3,3304.9,3.0]
[1722267125863,3.02477,3306.1,3304.9,6.02574]
[1722267126064,0.07563697,3306.0,3305.0,3.02571]
[1722267126315,0.07563697,3306.0,3304.9,3.0]
[1722267126608,0.07563697,3306.0,3304.5,0.302612]
[1722267126609,1.58046191,3305.7,3304.8,3.0]
[1722267126777,1.97219126,3306.0,3304.9,3.32575]
[1722267126778,0.07564371,3305.6,3304.9,3.32575]
[1722267126959,0.07564371,3305.6,3305.1,3.02562]
[1722267127158,0.07563906,3305.9,3305.0,3.02564]
[1722267127412,1.58046191,3306.1,3305.4,3.02527]
[1722267127557,1.89655429,3306.4,3305.5,3.327757]
[1722267127558,0.07563499,3306.0,3305.5,3.327757]
[1722267127934,1.58073043,3306.5,3305.5,0.302527]
[1722267128218,1.65635831,3306.4,3305.5,3.327757]
[1722267128508,1.58073043,3306.3,3305.5,0.302527]
[1722267128709,0.07562788,3306.2,3305.4,3.02534]
[1722267128916,0.07562788,3306.2,3305.2,3.02549]
[1722267129069,0.07562788,3306.2,3305.3,3.02535]
[1722267129070,1.65635831,3306.2,3305.3,3.02535]
[1722267129409,0.07562788,3306.2,3305.3,3.02538]
[1722267129618,0.07562788,3306.2,3304.9,3.0]
[1722267129619,0.07562788,3306.2,3305.4,3.02526]
[1722267129763,0.07562788,3306.2,3305.5,0.302526]
[1722267130163,0.07562788,3306.2,3305.2,3.02549]
[1722267130414,0.07562788,3306.2,3304.9,3.0]
[1722267130571,4.60553043,3306.0,3305.0,3.0]
[1722267130910,4.60553043,3306.0,3304.9,6.02578]
[1722267130911,0.07563893,3305.9,3304.9,3.0]
[1722267131061,1.58159028,3305.8,3305.0,0.602584]
[1722267131263,0.07563892,3305.7,3305.1,3.02556]
[1722267131467,0.07563892,3305.7,3304.9,3.02577]
[1722267132083,0.07563892,3305.7,3304.9,3.02576]
[1722267132286,0.07563892,3305.7,3305.1,3.02562]
[1722267132597,0.07563892,3305.7,3304.9,3.02576]
[1722267132598,1.6572292,3305.9,3305.0,3.02564]
[1722267132800,0.07563892,3305.9,3305.2,3.02552]
[1722267133104,0.07563892,3305.9,3305.1,0.605137]
[1722267133316,0.07563892,3305.9,3304.8,3.02588]
[1722267133464,0.07563892,3305.9,3304.4,3.02623]
[1722267133465,3.02508,3305.7,3304.4,3.02623]
[1722267133665,3.02551,3305.3,3304.1,3.02651]
[1722267133867,3.02551,3305.3,3304.2,3.02641]
[1722267133868,0.37820928,3305.2,3304.2,3.02641]
[1722267134071,0.37820928,3305.2,3304.0,0.1034]
[1722267134072,3.97279368,3305.1,3304.0,0.1034]
[1722267134372,1.58219368,3304.8,3304.0,0.1034]
[1722267134573,0.07566511,3304.7,3304.0,0.1034]
[1722267135200,2.59698588,3304.6,3304.0,0.1034]
[1722267135423,0.0756703,3304.5,3304.0,0.1034]
[1722267135771,1.65786398,3304.5,3304.0,0.1034]
[1722267136705,0.0756703,3304.5,3304.0,0.1034]
[1722267137010,1.58231531,3304.4,3304.0,0.1034]
[1722267137220,0.24147565,3304.3,3304.0,0.1034]
[1722267137425,0.07567773,3304.2,3304.0,0.1034]
[1722267138508,0.07567091,3304.5,3304.0,0.1034]
[1722267140554,1.65858408,3304.5,3304.0,0.1034]
[1722267140724,0.07567091,3304.5,3304.0,0.1034]
[1722267140935,1.58291317,3304.8,3304.1,3.02648]
[1722267141141,4.1699958,3305.1,3304.3,3.02629]
[1722267141142,0.07565551,3304.7,3304.3,3.02629]
[1722267141609,3.85341317,3305.1,3304.2,0.312988]
[1722267141610,0.0756553,3305.0,3304.2,0.312988]
[1722267142008,1.58291317,3305.1,3304.7,3.02597]
[1722267142218,1.58291317,3305.3,3304.5,6.05227]
[1722267142431,1.58291317,3305.4,3304.3,3.02631]
[1722267142741,1.65856527,3305.3,3304.3,3.328941]
[1722267142901,0.46080732,3305.4,3304.3,3.328941]
[1722267142902,1.58291317,3305.2,3304.3,3.328941]
[1722267143100,1.58401919,3305.2,3304.3,0.302631]
[1722267143337,1.58401919,3305.3,3304.5,3.02609]
[1722267143531,1.58401919,3305.4,3304.7,3.02593]
[1722267143752,0.0756439,3305.3,3304.5,3.02613]
[1722267143932,1.58401919,3305.2,3304.6,0.302613]
[1722267144135,0.07564797,3305.1,3304.3,3.02627]
[1722267144434,1.65966716,3305.1,3304.2,3.02642]
[1722267144637,0.07564797,3305.1,3304.2,3.02642]
[1722267144807,1.65966716,3305.1,3304.2,3.02642]
[1722267145006,1.58401919,3305.1,3304.2,3.02642]
[1722267145244,1.58401919,3305.1,3304.0,6.15657]
[1722267145401,1.58401919,3305.1,3304.1,6.642177]
[1722267145748,1.58437244,3305.1,3304.1,6.642177]
[1722267145943,1.58437244,3305.1,3304.2,6.02644]
[1722267146154,3.02518,3305.6,3304.3,3.02634]
[1722267146454,1.5843525,3305.1,3304.4,3.0262]
[1722267146650,1.5843525,3305.2,3304.6,3.02606]
[1722267146802,0.07564889,3305.1,3304.5,3.02609]
[1722267147007,1.5843525,3305.3,3304.9,3.02579]
[1722267147314,1.5843525,3305.6,3305.0,3.02565]
[1722267147542,1.5843525,3305.6,3304.6,3.02602]
[1722267147543,0.07564323,3305.5,3304.6,3.02602]
[1722267147841,0.07564323,3305.5,3304.7,3.631165]
[1722267148146,1.5843525,3305.7,3304.9,3.02572]
[1722267148314,1.5843525,3305.7,3304.8,3.02584]
[1722267148523,9.211223,3306.0,3305.2,3.02548]
[1722267148524,0.07564361,3305.6,3305.2,3.02548]
[1722267148719,0.07564361,3305.6,3304.4,5.52012]
[1722267148933,0.07564361,3305.6,3305.2,3.02548]
[1722267149141,0.07563535,3305.9,3305.4,3.02526]
[1722267149808,0.07563535,3305.9,3305.2,3.02553]
[1722267150010,0.07563535,3305.9,3305.4,3.02527]
[1722267150233,0.07563535,3305.9,3305.4,0.302527]
[1722267150422,4.0325525,3306.2,3305.2,3.02545]
[1722267150423,1.65998281,3306.1,3305.2,3.02545]
[1722267150641,1.65998281,3306.1,3304.3,3.02633]
[1722267150642,3.02535,3305.4,3304.3,3.02633]
[1722267150821,1.66000664,3305.3,3304.4,3.02621]
[1722267151020,1.5843525,3305.3,3304.4,3.631464]
[1722267151246,1.5843525,3305.3,3304.4,3.02619]
[1722267151447,1.5843525,3305.3,3304.0,0.1034]
[1722267151448,1.5843525,3305.3,3304.2,3.02643]
[1722267151757,1.5843525,3305.2,3304.2,3.02637]
[1722267151935,5.32873825,3305.5,3304.5,3.02612]
[1722267151936,0.07565415,3305.1,3304.5,3.02612]
[1722267152343,0.07565415,3305.1,3304.6,3.02604]
[1722267152654,0.07564408,3305.3,3304.9,3.02578]
[1722267152856,0.07564408,3305.3,3304.7,3.02592]
[1722267153651,0.07564408,3305.5,3304.9,3.02579]
[1722267153823,0.07564408,3305.5,3304.7,3.0259]
[1722267154028,1.65961434,3305.5,3304.7,3.0259]
[1722267154451,1.58397026,3305.2,3304.2,3.0264]
[1722267154616,0.07565402,3305.1,3304.3,3.0]
[1722267155115,0.07565402,3305.1,3304.3,6.02633]
[1722267155317,0.07565402,3305.1,3304.3,3.0]
[1722267155514,3.26727645,3305.1,3304.1,3.0]
[1722267155714,1.58423028,3305.0,3304.1,3.02652]
[1722267155953,0.07566086,3304.9,3304.0,3.1034]
[1722267156252,1.65989114,3304.9,3304.0,3.1034]
[1722267156453,0.25824622,3304.9,3304.0,3.1034]
[1722267156666,0.25824622,3304.9,3304.0,0.1034]
[1722267156667,2.2823,3304.8,3304.0,0.1034]
[1722267156883,3.02632,3304.4,3304.0,0.1034]
[1722267157155,2.2823,3304.1,3304.0,0.1034]
[1722267157341,4.34757448,3304.1,3304.0,0.1034]
[1722267157540,2.83888821,3304.1,3304.0,0.1034]
[1722267158042,4.42325489,3304.1,3304.0,0.1034]
[1722267158415,5.86542821,3304.1,3304.0,0.1034]
[1722267158650,2.83888821,3304.1,3304.0,0.1034]
[1722267158852,4.4228332,3304.1,3304.0,0.1034]
[1722267159061,0.59504435,3304.7,3304.0,0.1034]
[1722267159220,0.03012577,3304.6,3304.1,3.02653]
[1722267159415,0.03012577,3304.6,3304.0,0.1034]
[1722267159624,0.03012577,3304.6,3304.1,0.313008]
[1722267159927,4.92620964,3305.3,3304.1,0.313008]
[1722267159928,0.03012577,3305.2,3304.1,0.313008]
[1722267160516,0.03012577,3305.2,3304.1,3.339538]
[1722267160752,0.03012577,3305.2,3304.1,0.313008]
[1722267161063,0.03012577,3305.2,3304.0,0.1034]
[1722267161064,4.92633964,3305.1,3304.0,0.1034]
[1722267161220,3.02581,3304.9,3304.0,0.1034]
[1722267161418,0.03012577,3304.8,3304.0,0.1034]
[1722267161862,3.02613,3304.6,3304.0,0.1034]
[1722267162013,2.45692577,3304.5,3304.0,0.1034]
[1722267162221,0.54830558,3304.4,3304.0,0.1034]
[1722267162519,3.00692577,3304.5,3304.0,0.1034]
[1722267162520,3.05649577,3304.3,3304.0,0.1034]
[1722267162757,0.03012577,3304.2,3304.0,0.1034]
[1722267163059,3.05662577,3304.2,3304.0,0.1034]
[1722267163218,0.03012577,3304.2,3304.0,0.1034]
[1722267163416,0.66065058,3304.1,3304.0,0.1034]
[1722267163641,3.68719058,3304.1,3304.0,0.1034]
[1722267163877,13.85973058,3304.1,3304.0,0.1034]
[1722267164567,15.75953214,3304.1,3304.0,0.1034]
[1722267164919,13.85973058,3304.1,3304.0,0.1034]
[1722267165168,15.75956812,3304.1,3304.0,0.1034]
[1722267165535,13.85973058,3304.1,3304.0,0.1034]
[1722267165865,15.75956812,3304.1,3304.0,0.1034]
[1722267166063,13.85973058,3304.1,3304.0,0.1034]
[1722267171638,3.02735,3303.3,3302.1,6.02832]
[1722267171940,3.02711,3303.5,3302.2,0.602832]
[1722267171941,3.05754577,3303.2,3302.2,0.602832]
[1722267172244,3.02751,3303.1,3302.2,0.602832]
[1722267172468,0.03012577,3303.0,3302.1,2.3276]
[1722267172643,3.05768577,3303.0,3302.1,2.3276]
[1722267172849,0.03012577,3303.0,3302.1,2.3276]
[1722267173202,0.03012577,3303.0,3302.0,3.02844]
[1722267173203,0.55,3303.1,3301.5,3.02885]
[1722267173342,3.02794,3302.6,3301.5,3.331807]
[1722267173545,0.03012577,3302.5,3301.6,0.5659407]
[1722267174072,0.03012577,3302.5,3301.7,3.02869]
[1722267174439,0.03012577,3302.5,3301.6,0.5659407]
[1722267174640,0.03012577,3302.5,3301.3,3.02903]
[1722267174900,3.0283,3302.2,3301.0,3.02937]
[1722267175043,3.02852,3302.0,3300.9,5.35702]
[1722267175379,3.02852,3302.0,3300.7,3.02963]
[1722267175380,5.4414,3301.8,3300.7,3.02963]
[1722267175583,0.03012577,3301.7,3300.8,0.302963]
[1722267175790,3.60893577,3301.7,3300.5,3.0298]
[1722267175946,3.02887,3301.6,3300.5,3.0298]
[1722267176144,3.02902,3301.4,3300.2,3.03007]
[1722267176344,0.03012577,3301.3,3300.1,3.1781484]
[1722267176567,0.03012577,3301.3,3300.2,3.03011]
[1722267176770,0.03012577,3301.3,3300.3,3.03001]
[1722267176984,0.03012577,3301.3,3300.2,3.0301]
[1722267177196,3.05923577,3301.3,3300.1,0.1479984]
[1722267177356,0.03012577,3301.2,3300.2,0.62084884]
[1722267177704,0.58012577,3301.2,3300.2,0.62084884]
[1722267177917,3.60932577,3301.2,3300.2,0.62084884]
[1722267178095,3.05932577,3301.2,3300.2,0.62084884]
[1722267178269,0.55,3301.1,3300.1,0.1479984]
[1722267178595,3.05950577,3301.0,3300.1,0.1479984]
[1722267178768,0.03012577,3301.0,3300.1,0.1479984]
[1722267179183,3.05953577,3301.0,3300.1,0.1479984]
[1722267179506,3.02948,3300.9,3300.1,0.1479984]
[1722267179677,5.39910577,3300.8,3300.1,0.1479984]
[1722267179861,3.02975,3300.6,3300.1,0.1479984]
[1722267180056,0.03012577,3300.5,3300.1,0.1479984]
[1722267180257,0.58012577,3300.5,3300.1,0.1479984]
[1722267181759,0.03012577,3300.5,3300.1,0.1479984]
[1722267181976,0.03012577,3301.1,3300.1,0.1479984]
[1722267182201,3.02939,3301.0,3300.1,0.1479984]
[1722267182517,0.03012577,3300.9,3300.1,0.1479984]
[1722267182657,3.02957,3300.8,3300.1,0.1479984]
[1722267182862,0.03012577,3300.9,3300.1,0.1479984]
[1722267182863,3.05978577,3300.7,3300.1,0.1479984]
[1722267183097,0.55,3300.6,3300.1,0.1479984]
[1722267183315,0.03012577,3300.7,3300.1,0.1479984]
[1722267183316,0.03012577,3300.5,3300.1,0.1479984]
[1722267184530,8.88941,3300.2,3300.1,0.1479984]
[1722267184831,3.03041,3299.9,3298.4,0.00181085]
[1722267185013,3.0306,3299.7,3298.4,3.03357085]
[1722267185170,0.03012577,3299.6,3298.4,0.00181085]
[1722267185371,6.62692,3299.4,3298.4,0.00181085]
[1722267185614,0.58012577,3299.3,3298.4,0.00181085]
[1722267185828,0.03012577,3299.2,3298.4,0.00181085]
[1722267186186,0.03012577,3299.2,3298.4,3.03356085]
[1722267186383,0.55,3299.4,3298.5,3.06563364]
[1722267186585,3.03031,3300.0,3298.7,3.03149]
[1722267186892,4.992053,3300.0,3298.5,0.03401364]
[1722267187192,3.06053577,3299.9,3298.5,0.03401364]
[1722267187387,3.58048,3299.8,3298.5,0.03401364]
[1722267187601,0.39118635,3299.7,3298.6,3.03158]
[1722267187815,0.03012577,3299.7,3298.7,3.03149]
[1722267188021,0.03012577,3299.7,3298.5,0.34077809]
[1722267188226,0.55,3299.8,3298.7,3.03142]
[1722267188447,0.03012577,3299.7,3298.5,3.37239809]
[1722267188796,3.58049,3299.8,3298.5,3.37239809]
[1722267189163,3.58049,3299.8,3298.5,0.34077809]
[1722267189164,0.68817477,3299.7,3298.5,0.34077809]
[1722267189443,3.03092,3299.4,3298.5,0.03401364]
[1722267189745,3.03113,3299.1,3298.5,0.03401364]
[1722267189928,0.03012577,3299.0,3298.5,0.03401364]
[1722267190136,0.30612558,3298.9,3298.5,0.03401364]
[1722267190437,0.03012577,3298.8,3298.5,0.03401364]
[1722267190616,3.03113,3299.1,3298.5,0.03401364]
[1722267190823,0.33625135,3299.0,3298.5,0.03401364]
[1722267191131,3.03155,3298.7,3298.5,0.03401364]
[1722267191316,0.03012577,3298.6,3298.5,0.03401364]
[1722267191716,10.86700577,3298.6,3298.5,0.03401364]
[1722267191917,13.89858577,3298.6,3298.5,0.03401364]
[1722267192122,11.25828435,3298.6,3298.5,0.03401364]
[1722267192421,14.28986435,3298.6,3298.5,0.03401364]
[1722267192625,20.35302435,3298.6,3298.5,0.03401364]
[1722267193115,19.13844435,3298.6,3298.5,0.03401364]
[1722267193362,22.17002435,3298.6,3298.5,0.03401364]
[1722267193714,19.13844435,3298.6,3298.5,0.03401364]
[1722267194978,22.17002435,3298.6,3298.5,0.03401364]
[1722267195114,19.13844435,3298.6,3298.5,0.03401364]
[1722267195313,2.23985858,3298.6,3298.5,0.03401364]
[1722267195514,6.64328577,3298.6,3298.5,0.03401364]
[1722267195753,5.42870577,3298.6,3298.5,0.03401364]
[1722267195938,12.05628577,3298.6,3298.5,0.03401364]
[1722267196325,0.30612558,3299.0,3298.5,0.03401364]
[1722267196626,6.06316,3298.6,3298.5,0.03401364]
[1722267196857,7.210776,3298.6,3298.5,0.03401364]
[1722267197160,12.059356,3298.6,3298.5,0.03401364]
[1722267197357,7.210776,3298.6,3298.5,0.03401364]
[1722267197516,4.179196,3298.6,3298.5,0.03401364]
[1722267197711,1.17774177,3298.6,3298.5,0.03401364]
[1722267197918,6.64328577,3298.6,3298.5,0.03401364]
[1722267198136,12.10648577,3298.6,3298.5,0.03401364]
[1722267198423,10.89190577,3298.6,3298.5,0.03401364]
[1722267198725,9.64328577,3298.6,3298.5,0.03401364]
[1722267199436,11.46028577,3298.6,3298.5,0.03401364]
[1722267199768,15.99749435,3298.6,3298.5,0.03401364]
[1722267200379,21.49227435,3298.6,3298.5,0.03401364]
[1722267201938,18.43056858,3298.6,3298.5,0.03401364]
[1722267202264,15.39898858,3298.6,3298.5,0.03401364]
[1722267202419,14.84898858,3298.6,3298.5,0.03401364]
[1722267202746,6.32262858,3298.6,3298.5,0.03401364]
[1722267203163,9.35420858,3298.6,3298.5,0.03401364]
[1722267203579,12.38578858,3298.6,3298.5,0.03401364]
[1722267204543,9.90420858,3298.6,3298.5,0.03401364]
[1722267204747,6.87262858,3298.6,3298.5,0.03401364]
[1722267205063,8.39858,3298.6,3298.5,0.03401364]
[1722267205266,3.0,3298.6,3298.5,0.03401364]
[1722267205583,5.413,3299.2,3298.5,0.03401364]
[1722267205803,3.596,3299.6,3298.5,0.03401364]
[1722267205955,0.658049,3299.7,3298.6,0.54229145]
[1722267206303,6.06167,3299.5,3298.6,0.54229145]
[1722267206581,6.62747,3298.8,3298.5,0.03401364]
[1722267206741,0.03012577,3298.7,3298.5,0.03401364]
[1722267207697,1.817,3299.3,3298.5,0.03401364]
[1722267207842,1.817,3298.9,3298.5,0.03401364]
[1722267208141,3.62612577,3299.2,3298.5,0.03401364]
[1722267208142,0.03012577,3298.8,3298.5,0.03401364]
[1722267208375,3.596,3298.6,3298.5,0.03401364]
[1722267208734,0.03012577,3298.8,3298.5,0.03401364]
[1722267208735,3.596,3298.7,3298.6,2.3673]
[1722267209410,3.596,3298.7,3298.5,0.03401364]
[1722267209634,0.03012577,3298.6,3298.5,0.03401364]
[1722267210521,3.596,3298.7,3298.5,0.03401364]
[1722267211122,3.596,3299.1,3298.6,2.3354]
[1722267211333,3.06042577,3300.0,3298.6,2.3354]
[1722267211481,3.596,3298.9,3298.6,2.3354]
[1722267212909,0.03012577,3298.8,3298.6,2.3354]
[1722267214383,3.596,3298.9,3298.6,2.3354]
[1722267215193,3.596,3298.9,3298.7,0.23694136]
[1722267215698,7.31,3300.0,3298.7,3.32898641]
[1722267215699,3.596,3299.3,3298.7,3.32898641]
[1722267215919,3.596,3299.3,3298.7,0.23694136]